[Event "Titled Tuesday Blitz November 07 Early 2023"]
[White "knightinshiningarmour16"]
[Black "Mihailidis, Anastasios"]
[BlackFideId "4205588"]
[WhiteElo "2172"]
[BlackElo "2534"]
[Result "0-1"]
[Round "3"]
[TimeControl "180+1"]
[Date "2023.11.07"]
[WhiteClock "0:01:10"]
[BlackClock "0:01:33"]
[Board "169"]

1. d4 {[%clk 0:03:00]}  d5 {[%clk 0:02:57]} 2. Nf3 {[%clk 0:02:58]}  Nf6 {[%clk 0:02:57]} 3. c4 {[%clk 0:02:58]}  e6 {[%clk 0:02:57]} 4. Nc3 {[%clk 0:02:57]}  h6 {[%clk 0:02:55]} 5. Nxd5 {[%clk 0:02:56]}  exd5 {[%clk 0:02:55]} 6. cxd5 {[%clk 0:02:49]}  Qxd5 {[%clk 0:02:54]} 7. e3 {[%clk 0:02:47]}  Bb4+ {[%clk 0:02:54]} 8. Bd2 {[%clk 0:02:47]}  Bxd2+ {[%clk 0:02:53]} 9. Qxd2 {[%clk 0:02:48]}  O-O {[%clk 0:02:53]} 10. Bd3 {[%clk 0:02:48]}  Bf5 {[%clk 0:02:50]} 11. O-O {[%clk 0:02:47]}  Bxd3 {[%clk 0:02:48]} 12. Qxd3 {[%clk 0:02:47]}  c6 {[%clk 0:02:48]} 13. Rfe1 {[%clk 0:02:46]}  Re8 {[%clk 0:02:48]} 14. h3 {[%clk 0:02:44]}  Nbd7 {[%clk 0:02:47]} 15. Nd2 {[%clk 0:02:41]}  Nc5 {[%clk 0:02:43]} 16. Qc2 {[%clk 0:02:29]}  Nce4 {[%clk 0:02:42]} 17. Nc4 {[%clk 0:02:26]}  Nd6 {[%clk 0:02:35]} 18. Ne5 {[%clk 0:02:25]}  Qe6 {[%clk 0:02:33]} 19. f3 {[%clk 0:02:09]}  Nd7 {[%clk 0:02:31]} 20. Ng4 {[%clk 0:02:07]}  Qg6 {[%clk 0:02:24]} 21. e4 {[%clk 0:02:02]}  h5 {[%clk 0:02:23]} 22. Nf2 {[%clk 0:02:01]}  Nb5 {[%clk 0:02:19]} 23. Qd2 {[%clk 0:01:56]}  Rad8 {[%clk 0:02:16]} 24. a4 {[%clk 0:01:56]}  Nc7 {[%clk 0:02:14]} 25. b4 {[%clk 0:01:54]}  Nf6 {[%clk 0:02:13]} 26. Rad1 {[%clk 0:01:52]}  Ne6 {[%clk 0:02:10]} 27. Qb2 {[%clk 0:01:51]}  h4 {[%clk 0:02:07]} 28. e5 {[%clk 0:01:42]}  Nd5 {[%clk 0:02:04]} 29. Ne4 {[%clk 0:01:41]}  Ng5 {[%clk 0:01:53]} 30. Kh1 {[%clk 0:01:30]}  Nxe4 {[%clk 0:01:47]} 31. Rxe4 {[%clk 0:01:31]}  Qg5 {[%clk 0:01:45]} 32. Rg4 {[%clk 0:01:24]}  Qh6 {[%clk 0:01:42]} 33. Qf2 {[%clk 0:01:20]}  Ne3 {[%clk 0:01:36]} 34. Rxh4 {[%clk 0:01:10]}  Nxd1 {[%clk 0:01:33]} 0-1


[Site "https://www.chess.com"]

[Event "Titled Tuesday Blitz November 07 Early 2023"]
[White "Rietze, Clemens, Dr."]
[Black "Maluco_do_Natal_00"]
[WhiteFideId "24620351"]
[WhiteElo "2531"]
[BlackElo "2119"]
[Result "1-0"]
[Round "3"]
[TimeControl "180+1"]
[Date "2023.11.07"]
[WhiteClock "0:01:26"]
[BlackClock "0:00:03"]
[Board "170"]

1. d4 {[%clk 0:03:00]}  d5 {[%clk 0:02:58]} 2. c4 {[%clk 0:03:01]}  c6 {[%clk 0:02:58]} 3. Nf3 {[%clk 0:03:01]}  Nf6 {[%clk 0:02:58]} 4. Nc3 {[%clk 0:03:02]}  dxc4 {[%clk 0:02:57]} 5. a4 {[%clk 0:03:02]}  Bf5 {[%clk 0:02:57]} 6. Ne5 {[%clk 0:03:02]}  Nbd7 {[%clk 0:02:31]} 7. Nxc4 {[%clk 0:03:02]}  e6 {[%clk 0:02:29]} 8. g3 {[%clk 0:03:01]}  Bb4 {[%clk 0:02:14]} 9. Bg2 {[%clk 0:03:00]}  O-O {[%clk 0:02:04]} 10. O-O {[%clk 0:03:00]}  h6 {[%clk 0:01:59]} 11. e4 {[%clk 0:02:59]}  Bh7 {[%clk 0:01:58]} 12. Qe2 {[%clk 0:02:55]}  Qe7 {[%clk 0:01:32]} 13. a5 {[%clk 0:02:52]}  c5 {[%clk 0:01:23]} 14. e5 {[%clk 0:02:36]}  Ne8 {[%clk 0:01:13]} 15. Be3 {[%clk 0:02:36]}  cxd4 {[%clk 0:01:05]} 16. Bxd4 {[%clk 0:02:37]}  Bc5 {[%clk 0:00:57]} 17. Rfd1 {[%clk 0:02:31]}  Bxd4 {[%clk 0:00:57]} 18. Rxd4 {[%clk 0:02:32]}  Rb8 {[%clk 0:00:54]} 19. Nb5 {[%clk 0:02:20]}  Qc5 {[%clk 0:00:41]} 20. Rxd7 {[%clk 0:01:55]}  Qxb5 {[%clk 0:00:40]} 21. Rad1 {[%clk 0:01:52]}  Rc8 {[%clk 0:00:36]} 22. R1d4 {[%clk 0:01:46]}  Rc7 {[%clk 0:00:28]} 23. Rd8 {[%clk 0:01:44]}  Bb1 {[%clk 0:00:18]} 24. Bf1 {[%clk 0:01:35]}  Ba2 {[%clk 0:00:14]} 25. Nd6 {[%clk 0:01:26]}  Qxe2 {[%clk 0:00:12]} 26. Bxe2 {[%clk 0:01:27]}  Bd5 {[%clk 0:00:10]} 27. Rxe8 {[%clk 0:01:24]}  Rc1+ {[%clk 0:00:09]} 28. Rd1 {[%clk 0:01:24]}  Rxd1+ {[%clk 0:00:06]} 29. Bxd1 {[%clk 0:01:25]}  Rxe8 {[%clk 0:00:03]} 30. Nxe8 {[%clk 0:01:26]} 1-0


[Site "https://www.chess.com"]

[Event "Titled Tuesday Blitz November 07 Early 2023"]
[White "Winkels, Marcel"]
[Black "Tikhonov, Viacheslav"]
[WhiteFideId "1003887"]
[BlackFideId "44196407"]
[WhiteElo "2080"]
[BlackElo "2531"]
[Result "0-1"]
[Round "3"]
[TimeControl "180+1"]
[Date "2023.11.07"]
[WhiteClock "0:01:50"]
[BlackClock "0:01:10"]
[Board "171"]

1. e4 {[%clk 0:03:00]}  c5 {[%clk 0:02:56]} 2. Nf3 {[%clk 0:03:00]}  Nc6 {[%clk 0:02:55]} 3. d4 {[%clk 0:03:00]}  cxd4 {[%clk 0:02:53]} 4. Nxd4 {[%clk 0:03:00]}  Nf6 {[%clk 0:02:50]} 5. Nc3 {[%clk 0:02:59]}  e5 {[%clk 0:02:49]} 6. Ndb5 {[%clk 0:02:59]}  d6 {[%clk 0:02:14]} 7. Bg5 {[%clk 0:02:55]}  a6 {[%clk 0:02:14]} 8. Na3 {[%clk 0:02:55]}  b5 {[%clk 0:02:15]} 9. Nab1 {[%clk 0:02:53]}  Be7 {[%clk 0:02:12]} 10. Bxf6 {[%clk 0:02:52]}  Bxf6 {[%clk 0:02:12]} 11. Nd5 {[%clk 0:02:52]}  Rb8 {[%clk 0:02:06]} 12. Be2 {[%clk 0:02:47]}  Bg5 {[%clk 0:02:01]} 13. O-O {[%clk 0:02:46]}  O-O {[%clk 0:02:00]} 14. c3 {[%clk 0:02:41]}  Be6 {[%clk 0:01:59]} 15. Na3 {[%clk 0:02:39]}  Kh8 {[%clk 0:01:50]} 16. Nc2 {[%clk 0:02:37]}  Ne7 {[%clk 0:01:46]} 17. Nce3 {[%clk 0:02:33]}  Nxd5 {[%clk 0:01:37]} 18. Nxd5 {[%clk 0:02:32]}  f5 {[%clk 0:01:37]} 19. exf5 {[%clk 0:02:31]}  Bxf5 {[%clk 0:01:38]} 20. b4 {[%clk 0:02:22]}  Bh6 {[%clk 0:01:35]} 21. a4 {[%clk 0:02:22]}  Be6 {[%clk 0:01:26]} 22. axb5 {[%clk 0:02:20]}  axb5 {[%clk 0:01:27]} 23. Ra5 {[%clk 0:02:18]}  Qd7 {[%clk 0:01:25]} 24. Qa1 {[%clk 0:02:06]}  Bxd5 {[%clk 0:01:24]} 25. Rd1 {[%clk 0:02:05]}  Qc6 {[%clk 0:01:20]} 26. f3 {[%clk 0:02:04]}  e4 {[%clk 0:01:11]} 27. Ra6 {[%clk 0:01:57]}  Qb7 {[%clk 0:01:11]} 28. Ra7 {[%clk 0:01:56]}  Be3+ {[%clk 0:01:10]} 29. Kh1 {[%clk 0:01:50]}  Bxa7 {[%clk 0:01:10]} 0-1


[Site "https://www.chess.com"]

[Event "Titled Tuesday Blitz November 07 Early 2023"]
[White "Thake, Conrad"]
[Black "Witty_Alien"]
[WhiteFideId "5602947"]
[WhiteElo "1809"]
[BlackElo "2251"]
[Result "0-1"]
[Round "3"]
[TimeControl "180+1"]
[Date "2023.11.07"]
[WhiteClock "0:01:13"]
[BlackClock "0:00:47"]
[Board "175"]

1. c4 {[%clk 0:03:00]}  c5 {[%clk 0:02:57]} 2. Nc3 {[%clk 0:03:00]}  Nc6 {[%clk 0:02:55]} 3. d3 {[%clk 0:03:00]}  g6 {[%clk 0:02:55]} 4. e4 {[%clk 0:03:00]}  Bg7 {[%clk 0:02:55]} 5. g3 {[%clk 0:03:00]}  h5 {[%clk 0:02:54]} 6. Bg2 {[%clk 0:03:00]}  h4 {[%clk 0:02:55]} 7. g4 {[%clk 0:02:40]}  Nd4 {[%clk 0:02:52]} 8. h3 {[%clk 0:02:39]}  d6 {[%clk 0:02:51]} 9. Nge2 {[%clk 0:02:39]}  e6 {[%clk 0:02:33]} 10. O-O {[%clk 0:02:37]}  Ne7 {[%clk 0:02:27]} 11. Be3 {[%clk 0:02:31]}  Nec6 {[%clk 0:02:22]} 12. a3 {[%clk 0:02:27]}  e5 {[%clk 0:02:13]} 13. f4 {[%clk 0:02:26]}  Bxg4 {[%clk 0:02:06]} 14. hxg4 {[%clk 0:02:23]}  h3 {[%clk 0:02:07]} 15. Bf3 {[%clk 0:02:14]}  exf4 {[%clk 0:01:52]} 16. Nxf4 {[%clk 0:02:06]}  Qh4 {[%clk 0:01:42]} 17. Bf2 {[%clk 0:02:02]}  Qg5 {[%clk 0:01:38]} 18. Be3 {[%clk 0:01:54]}  Ne5 {[%clk 0:01:27]} 19. Ncd5 {[%clk 0:01:49]}  Nexf3+ {[%clk 0:01:21]} 20. Rxf3 {[%clk 0:01:49]}  Qxg4+ {[%clk 0:01:20]} 21. Kf1 {[%clk 0:01:30]}  h2 {[%clk 0:00:59]} 22. Bxd4 {[%clk 0:01:18]}  h1=Q+ {[%clk 0:00:57]} 23. Ke2 {[%clk 0:01:17]}  Rh2+ {[%clk 0:00:49]} 24. Bf2 {[%clk 0:01:16]}  Qhxf3+ {[%clk 0:00:48]} 25. Ke1 {[%clk 0:01:13]}  Qxf2# {[%clk 0:00:47]} 0-1


[Site "https://www.chess.com"]

[Event "Titled Tuesday Blitz November 07 Early 2023"]
[White "Rasulov, Vugar"]
[Black "Jovic, Stanoje"]
[WhiteFideId "13402390"]
[BlackFideId "905020"]
[WhiteElo "2964"]
[BlackElo "2439"]
[Result "1-0"]
[Round "3"]
[TimeControl "180+1"]
[Date "2023.11.07"]
[WhiteClock "0:01:09"]
[BlackClock "0:00:00"]
[Board "176"]

1. a3 {[%clk 0:03:00]}  c5 {[%clk 0:02:59]} 2. b4 {[%clk 0:03:00]}  e5 {[%clk 0:02:55]} 3. Bb2 {[%clk 0:03:00]}  f6 {[%clk 0:02:42]} 4. e3 {[%clk 0:03:00]}  cxb4 {[%clk 0:02:40]} 5. axb4 {[%clk 0:03:00]}  Bxb4 {[%clk 0:02:40]} 6. Nf3 {[%clk 0:03:00]}  Ne7 {[%clk 0:02:34]} 7. c3 {[%clk 0:02:54]}  Ba5 {[%clk 0:02:30]} 8. Ba3 {[%clk 0:02:53]}  Bb6 {[%clk 0:02:16]} 9. e4 {[%clk 0:02:45]}  d5 {[%clk 0:02:10]} 10. exd5 {[%clk 0:02:45]}  Nxd5 {[%clk 0:02:03]} 11. Bc4 {[%clk 0:02:36]}  Be6 {[%clk 0:01:57]} 12. Qb3 {[%clk 0:02:35]}  Nc6 {[%clk 0:01:50]} 13. O-O {[%clk 0:02:34]}  Kf7 {[%clk 0:01:48]} 14. Qc2 {[%clk 0:02:29]}  Rc8 {[%clk 0:01:47]} 15. d3 {[%clk 0:02:23]}  h5 {[%clk 0:01:42]} 16. Nbd2 {[%clk 0:02:22]}  h4 {[%clk 0:01:41]} 17. Ne4 {[%clk 0:02:22]}  g5 {[%clk 0:01:24]} 18. Nd6+ {[%clk 0:02:21]}  Kg7 {[%clk 0:01:23]} 19. Nxc8 {[%clk 0:02:22]}  Qxc8 {[%clk 0:01:21]} 20. Bc1 {[%clk 0:01:47]}  g4 {[%clk 0:01:19]} 21. Nd2 {[%clk 0:01:47]}  g3 {[%clk 0:01:18]} 22. Ne4 {[%clk 0:01:47]}  gxh2+ {[%clk 0:00:59]} 23. Kxh2 {[%clk 0:01:46]}  Nce7 {[%clk 0:00:49]} 24. Qe2 {[%clk 0:01:28]}  Bg4 {[%clk 0:00:42]} 25. f3 {[%clk 0:01:26]}  Bf5 {[%clk 0:00:39]} 26. Bxd5 {[%clk 0:01:24]}  Nxd5 {[%clk 0:00:38]} 27. c4 {[%clk 0:01:25]}  Ne7 {[%clk 0:00:34]} 28. Be3 {[%clk 0:01:23]}  Ng6 {[%clk 0:00:31]} 29. Rab1 {[%clk 0:01:15]}  Bxe3 {[%clk 0:00:28]} 30. Qxe3 {[%clk 0:01:16]}  b6 {[%clk 0:00:23]} 31. c5 {[%clk 0:01:16]}  bxc5 {[%clk 0:00:14]} 32. Nd6 {[%clk 0:01:16]}  Qe6 {[%clk 0:00:10]} 33. Rb7+ {[%clk 0:01:16]}  Kg8 {[%clk 0:00:08]} 34. Qxc5 {[%clk 0:01:14]}  Nf8 {[%clk 0:00:05]} 35. Qc4 {[%clk 0:01:09]}  Qxc4 {[%clk 0:00:04]} 36. dxc4 {[%clk 0:01:10]}  Be6 {[%clk 0:00:03]} 37. Rxa7 {[%clk 0:01:09]}  h3 {[%clk 0:00:00]} 38. g3 {[%clk 0:01:09]} 1-0


[Site "https://www.chess.com"]

[Event "Titled Tuesday Blitz November 07 Early 2023"]
[White "Cheer_Down"]
[Black "Horak, Martin"]
[BlackFideId "367095"]
[WhiteElo "2381"]
[BlackElo "2518"]
[Result "0-1"]
[Round "3"]
[TimeControl "180+1"]
[Date "2023.11.07"]
[WhiteClock "0:00:23"]
[BlackClock "0:00:19"]
[Board "181"]

1. e4 {[%clk 0:02:46]}  e5 {[%clk 0:02:59]} 2. Nf3 {[%clk 0:02:46]}  Nc6 {[%clk 0:02:59]} 3. Bc4 {[%clk 0:02:47]}  Nf6 {[%clk 0:02:59]} 4. d3 {[%clk 0:02:46]}  Be7 {[%clk 0:02:58]} 5. O-O {[%clk 0:02:45]}  O-O {[%clk 0:02:57]} 6. Re1 {[%clk 0:02:42]}  d6 {[%clk 0:02:56]} 7. a4 {[%clk 0:02:41]}  Na5 {[%clk 0:02:52]} 8. Ba2 {[%clk 0:02:31]}  c5 {[%clk 0:02:52]} 9. c3 {[%clk 0:02:30]}  Nc6 {[%clk 0:02:52]} 10. Na3 {[%clk 0:02:30]}  a6 {[%clk 0:02:47]} 11. Bd2 {[%clk 0:02:30]}  h6 {[%clk 0:02:30]} 12. h3 {[%clk 0:02:28]}  Re8 {[%clk 0:02:29]} 13. Nc2 {[%clk 0:02:14]}  Bf8 {[%clk 0:02:27]} 14. b4 {[%clk 0:02:06]}  cxb4 {[%clk 0:02:22]} 15. cxb4 {[%clk 0:02:06]}  Be6 {[%clk 0:02:15]} 16. Bxe6 {[%clk 0:02:05]}  fxe6 {[%clk 0:02:15]} 17. b5 {[%clk 0:01:56]}  axb5 {[%clk 0:02:04]} 18. axb5 {[%clk 0:01:57]}  Ne7 {[%clk 0:02:04]} 19. Nb4 {[%clk 0:01:55]}  Qb6 {[%clk 0:02:00]} 20. Qb3 {[%clk 0:01:48]}  Kf7 {[%clk 0:01:51]} 21. Rxa8 {[%clk 0:01:41]}  Rxa8 {[%clk 0:01:50]} 22. d4 {[%clk 0:01:36]}  exd4 {[%clk 0:01:44]} 23. e5 {[%clk 0:01:35]}  dxe5 {[%clk 0:01:37]} 24. Nxe5+ {[%clk 0:01:35]}  Kg8 {[%clk 0:01:35]} 25. Nbc6 {[%clk 0:01:14]}  bxc6 {[%clk 0:00:54]} 26. Qxe6+ {[%clk 0:01:14]}  Kh7 {[%clk 0:00:54]} 27. Bb4 {[%clk 0:01:03]}  Re8 {[%clk 0:00:29]} 28. Qf7 {[%clk 0:00:35]}  Qxb5 {[%clk 0:00:20]} 29. Bxe7 {[%clk 0:00:33]}  Rxe7 {[%clk 0:00:19]} 30. Qxf8 {[%clk 0:00:32]}  Rxe5 {[%clk 0:00:18]} 31. Rxe5 {[%clk 0:00:23]}  Qxe5 {[%clk 0:00:19]} 0-1


[Site "https://www.chess.com"]

[Event "Titled Tuesday Blitz November 07 Early 2023"]
[White "Khamdamova, Afruza"]
[Black "Matthes, Aaron"]
[WhiteFideId "14210444"]
[BlackFideId "16227310"]
[WhiteElo "2509"]
[BlackElo "2347"]
[Result "1-0"]
[Round "3"]
[TimeControl "180+1"]
[Date "2023.11.07"]
[WhiteClock "0:00:04"]
[BlackClock "0:00:11"]
[Board "182"]

1. e4 {[%clk 0:03:00]}  c6 {[%clk 0:02:58]} 2. d4 {[%clk 0:03:01]}  d5 {[%clk 0:02:59]} 3. Nc3 {[%clk 0:03:00]}  dxe4 {[%clk 0:02:59]} 4. Nxe4 {[%clk 0:03:01]}  Bf5 {[%clk 0:03:00]} 5. Ng3 {[%clk 0:03:01]}  Bg6 {[%clk 0:03:00]} 6. Nf3 {[%clk 0:03:02]}  e6 {[%clk 0:03:00]} 7. h4 {[%clk 0:03:01]}  h6 {[%clk 0:03:00]} 8. Ne5 {[%clk 0:03:01]}  Ne7 {[%clk 0:02:55]} 9. Nxg6 {[%clk 0:02:59]}  Nxg6 {[%clk 0:02:55]} 10. h5 {[%clk 0:02:55]}  Ne7 {[%clk 0:02:53]} 11. c3 {[%clk 0:02:55]}  Nd7 {[%clk 0:02:46]} 12. Bd3 {[%clk 0:02:54]}  Nf6 {[%clk 0:02:43]} 13. O-O {[%clk 0:02:43]}  Qc7 {[%clk 0:02:38]} 14. Qf3 {[%clk 0:02:41]}  Ned5 {[%clk 0:02:25]} 15. c4 {[%clk 0:02:40]}  Nb4 {[%clk 0:02:24]} 16. Bb1 {[%clk 0:02:38]}  Bd6 {[%clk 0:02:23]} 17. a3 {[%clk 0:02:36]}  Na6 {[%clk 0:02:19]} 18. Ne4 {[%clk 0:02:26]}  Nxe4 {[%clk 0:02:13]} 19. Bxe4 {[%clk 0:02:25]}  Nb8 {[%clk 0:02:11]} 20. c5 {[%clk 0:02:24]}  Be7 {[%clk 0:02:10]} 21. Bf4 {[%clk 0:02:24]}  Qd8 {[%clk 0:02:08]} 22. Be5 {[%clk 0:02:24]}  Bf6 {[%clk 0:02:03]} 23. Rad1 {[%clk 0:02:19]}  Nd7 {[%clk 0:02:02]} 24. Bd6 {[%clk 0:02:18]}  Be7 {[%clk 0:02:01]} 25. Bf4 {[%clk 0:01:58]}  Bf6 {[%clk 0:01:58]} 26. b4 {[%clk 0:01:54]}  Bg5 {[%clk 0:01:57]} 27. Bg3 {[%clk 0:01:53]}  a6 {[%clk 0:01:56]} 28. Rfe1 {[%clk 0:01:53]}  Nf6 {[%clk 0:01:55]} 29. d5 {[%clk 0:01:27]}  cxd5 {[%clk 0:01:51]} 30. Bxd5 {[%clk 0:01:27]}  Nxd5 {[%clk 0:01:52]} 31. Rxd5 {[%clk 0:01:26]}  Qf6 {[%clk 0:01:45]} 32. Qd3 {[%clk 0:01:14]}  O-O {[%clk 0:01:42]} 33. Be5 {[%clk 0:01:09]}  Qe7 {[%clk 0:01:19]} 34. Rd7 {[%clk 0:01:00]}  Qe8 {[%clk 0:01:18]} 35. Rd1 {[%clk 0:00:58]}  Rd8 {[%clk 0:01:14]} 36. Rxd8 {[%clk 0:00:57]}  Qxd8 {[%clk 0:01:13]} 37. Qf3 {[%clk 0:00:50]}  Qc8 {[%clk 0:01:11]} 38. Qc3 {[%clk 0:00:49]}  Rd8 {[%clk 0:00:59]} 39. Re1 {[%clk 0:00:34]}  Bd2 {[%clk 0:00:54]} 40. Qg3 {[%clk 0:00:32]}  g5 {[%clk 0:00:20]} 41. hxg6 {[%clk 0:00:16]}  f6 {[%clk 0:00:19]} 42. Bxf6 {[%clk 0:00:03]}  Bxe1 {[%clk 0:00:19]} 43. Bxd8 {[%clk 0:00:03]}  Qxd8 {[%clk 0:00:19]} 44. Qe3 {[%clk 0:00:03]}  Qf6 {[%clk 0:00:03]} 45. Qxe1 {[%clk 0:00:03]}  Qxg6 {[%clk 0:00:04]} 46. Qe5 {[%clk 0:00:03]}  Qb1+ {[%clk 0:00:04]} 47. Kh2 {[%clk 0:00:03]}  Qg6 {[%clk 0:00:05]} 48. Qb8+ {[%clk 0:00:04]}  Kf7 {[%clk 0:00:05]} 49. Qxb7+ {[%clk 0:00:04]}  Kf6 {[%clk 0:00:06]} 50. Qxa6 {[%clk 0:00:04]}  Qh5+ {[%clk 0:00:07]} 51. Kg3 {[%clk 0:00:03]}  Qd1 {[%clk 0:00:08]} 52. Qd6 {[%clk 0:00:03]}  Qb3+ {[%clk 0:00:08]} 53. f3 {[%clk 0:00:02]}  Qxa3 {[%clk 0:00:08]} 54. c6 {[%clk 0:00:03]}  Qxb4 {[%clk 0:00:08]} 55. Qxb4 {[%clk 0:00:03]}  Kf5 {[%clk 0:00:08]} 56. c7 {[%clk 0:00:02]}  h5 {[%clk 0:00:09]} 57. c8=Q {[%clk 0:00:02]}  h4+ {[%clk 0:00:10]} 58. Kh2 {[%clk 0:00:03]}  Kg5 {[%clk 0:00:10]} 59. Qg8+ {[%clk 0:00:03]}  Kf5 {[%clk 0:00:11]} 60. Qbg4+ {[%clk 0:00:03]}  Ke5 {[%clk 0:00:10]} 61. Qb8+ {[%clk 0:00:04]}  Kd5 {[%clk 0:00:11]} 62. Qe4+ {[%clk 0:00:04]}  Kc5 {[%clk 0:00:11]} 63. Qbb4# {[%clk 0:00:04]} 1-0


[Site "https://www.chess.com"]

[Event "Titled Tuesday Blitz November 07 Early 2023"]
[White "Grossboss19"]
[Black "LeoWin2012"]
[WhiteElo "2498"]
[BlackElo "2285"]
[Result "1-0"]
[Round "3"]
[TimeControl "180+1"]
[Date "2023.11.07"]
[WhiteClock "0:00:34"]
[BlackClock "0:00:10"]
[Board "184"]

1. e4 {[%clk 0:02:56]}  e6 {[%clk 0:02:57]} 2. Ne2 {[%clk 0:02:54]}  d5 {[%clk 0:02:57]} 3. d3 {[%clk 0:02:53]}  dxe4 {[%clk 0:02:57]} 4. dxe4 {[%clk 0:02:54]}  Qxd1+ {[%clk 0:02:56]} 5. Kxd1 {[%clk 0:02:55]}  Nf6 {[%clk 0:02:57]} 6. f3 {[%clk 0:02:54]}  Nc6 {[%clk 0:02:53]} 7. Be3 {[%clk 0:02:54]}  e5 {[%clk 0:02:47]} 8. c3 {[%clk 0:02:48]}  Be6 {[%clk 0:02:46]} 9. Kc2 {[%clk 0:02:48]}  O-O-O {[%clk 0:02:46]} 10. Nd2 {[%clk 0:02:48]}  Be7 {[%clk 0:02:41]} 11. Nc1 {[%clk 0:02:48]}  Nd7 {[%clk 0:02:37]} 12. b4 {[%clk 0:02:43]}  Nb6 {[%clk 0:02:31]} 13. a4 {[%clk 0:02:42]}  a6 {[%clk 0:02:22]} 14. a5 {[%clk 0:02:41]}  Nd7 {[%clk 0:02:20]} 15. Bc4 {[%clk 0:02:35]}  Bxc4 {[%clk 0:02:17]} 16. Nxc4 {[%clk 0:02:36]}  f6 {[%clk 0:02:07]} 17. Nb3 {[%clk 0:02:30]}  Nf8 {[%clk 0:01:57]} 18. h4 {[%clk 0:02:21]}  Ne6 {[%clk 0:01:55]} 19. h5 {[%clk 0:02:21]}  h6 {[%clk 0:01:54]} 20. g4 {[%clk 0:02:17]}  Rd7 {[%clk 0:01:42]} 21. Rhd1 {[%clk 0:02:14]}  Rhd8 {[%clk 0:01:36]} 22. Rxd7 {[%clk 0:02:13]}  Rxd7 {[%clk 0:01:37]} 23. Nc1 {[%clk 0:02:10]}  Kd8 {[%clk 0:01:17]} 24. Ne2 {[%clk 0:02:07]}  Kc8 {[%clk 0:01:10]} 25. Ng3 {[%clk 0:02:05]}  Bf8 {[%clk 0:01:06]} 26. Nf5 {[%clk 0:02:02]}  Ne7 {[%clk 0:01:00]} 27. Nh4 {[%clk 0:01:59]}  Rd8 {[%clk 0:00:50]} 28. Bd2 {[%clk 0:01:45]}  Rd7 {[%clk 0:00:36]} 29. Ng2 {[%clk 0:01:36]}  Rd8 {[%clk 0:00:26]} 30. Nce3 {[%clk 0:01:35]}  Rd7 {[%clk 0:00:25]} 31. Re1 {[%clk 0:01:32]}  Ng5 {[%clk 0:00:12]} 32. Rf1 {[%clk 0:01:28]}  Ne6 {[%clk 0:00:11]} 33. Nh4 {[%clk 0:01:25]}  Nf4 {[%clk 0:00:10]} 34. Nef5 {[%clk 0:01:22]}  Nxf5 {[%clk 0:00:10]} 35. Nxf5 {[%clk 0:01:21]}  Ne6 {[%clk 0:00:07]} 36. Be3 {[%clk 0:01:21]}  Kb8 {[%clk 0:00:05]} 37. f4 {[%clk 0:01:04]}  exf4 {[%clk 0:00:05]} 38. Bxf4 {[%clk 0:01:05]}  Kc8 {[%clk 0:00:02]} 39. Be3 {[%clk 0:01:03]}  Kb8 {[%clk 0:00:02]} 40. Re1 {[%clk 0:01:00]}  Kc8 {[%clk 0:00:02]} 41. Bc1 {[%clk 0:00:58]}  Ng5 {[%clk 0:00:02]} 42. Bxg5 {[%clk 0:00:54]}  hxg5 {[%clk 0:00:02]} 43. e5 {[%clk 0:00:53]}  Kd8 {[%clk 0:00:02]} 44. e6 {[%clk 0:00:43]}  Rd5 {[%clk 0:00:02]} 45. e7+ {[%clk 0:00:44]}  Bxe7 {[%clk 0:00:02]} 46. Nxe7 {[%clk 0:00:43]}  Rd7 {[%clk 0:00:01]} 47. Nf5 {[%clk 0:00:42]}  Rf7 {[%clk 0:00:02]} 48. Kd3 {[%clk 0:00:40]}  Kd7 {[%clk 0:00:02]} 49. Re4 {[%clk 0:00:37]}  c6 {[%clk 0:00:02]} 50. Kc4 {[%clk 0:00:36]}  Kc7 {[%clk 0:00:02]} 51. Re7+ {[%clk 0:00:35]}  Rxe7 {[%clk 0:00:02]} 52. Nxe7 {[%clk 0:00:36]}  Kd6 {[%clk 0:00:03]} 53. Nf5+ {[%clk 0:00:36]}  Ke5 {[%clk 0:00:04]} 54. Nxg7 {[%clk 0:00:37]}  Kf4 {[%clk 0:00:05]} 55. h6 {[%clk 0:00:37]}  Kxg4 {[%clk 0:00:05]} 56. h7 {[%clk 0:00:38]}  Kf4 {[%clk 0:00:06]} 57. h8=Q {[%clk 0:00:39]}  g4 {[%clk 0:00:07]} 58. Qh4 {[%clk 0:00:38]}  Kf3 {[%clk 0:00:07]} 59. Qxf6+ {[%clk 0:00:38]}  Kg2 {[%clk 0:00:07]} 60. Nh5 {[%clk 0:00:38]}  g3 {[%clk 0:00:08]} 61. Qg5 {[%clk 0:00:39]}  b5+ {[%clk 0:00:08]} 62. axb6 {[%clk 0:00:38]}  c5 {[%clk 0:00:08]} 63. Qxg3+ {[%clk 0:00:37]}  Kh1 {[%clk 0:00:09]} 64. Qf2 {[%clk 0:00:35]}  cxb4 {[%clk 0:00:10]} 65. Ng3# {[%clk 0:00:34]} 1-0


[Site "https://www.chess.com"]

[Event "Titled Tuesday Blitz November 07 Early 2023"]
[White "Tharushi, T H D Niklesha"]
[Black "dodoucb"]
[WhiteFideId "9918264"]
[WhiteElo "2270"]
[BlackElo "2479"]
[Result "0-1"]
[Round "3"]
[TimeControl "180+1"]
[Date "2023.11.07"]
[WhiteClock "0:00:06"]
[BlackClock "0:01:26"]
[Board "186"]

1. e4 {[%clk 0:03:00]}  c6 {[%clk 0:03:00]} 2. d4 {[%clk 0:02:58]}  d5 {[%clk 0:03:01]} 3. e5 {[%clk 0:02:59]}  Bf5 {[%clk 0:03:00]} 4. Bd3 {[%clk 0:02:59]}  Bxd3 {[%clk 0:03:00]} 5. Qxd3 {[%clk 0:03:00]}  e6 {[%clk 0:03:01]} 6. c3 {[%clk 0:03:01]}  c5 {[%clk 0:03:01]} 7. Nf3 {[%clk 0:03:01]}  Nc6 {[%clk 0:03:02]} 8. Bf4 {[%clk 0:03:00]}  cxd4 {[%clk 0:03:00]} 9. cxd4 {[%clk 0:03:00]}  Rc8 {[%clk 0:03:01]} 10. Nc3 {[%clk 0:02:59]}  Nge7 {[%clk 0:03:01]} 11. a3 {[%clk 0:02:56]}  Nf5 {[%clk 0:03:00]} 12. b4 {[%clk 0:02:55]}  Be7 {[%clk 0:02:59]} 13. O-O {[%clk 0:02:55]}  O-O {[%clk 0:02:59]} 14. Rac1 {[%clk 0:02:52]}  a5 {[%clk 0:02:57]} 15. b5 {[%clk 0:02:51]}  Nb8 {[%clk 0:02:58]} 16. a4 {[%clk 0:02:48]}  h6 {[%clk 0:02:45]} 17. h3 {[%clk 0:02:37]}  Bb4 {[%clk 0:02:41]} 18. Na2 {[%clk 0:02:26]}  Qe7 {[%clk 0:02:37]} 19. g4 {[%clk 0:02:22]}  Nh4 {[%clk 0:02:30]} 20. Nxh4 {[%clk 0:02:22]}  Qxh4 {[%clk 0:02:31]} 21. Nxb4 {[%clk 0:02:22]}  axb4 {[%clk 0:02:32]} 22. Kg2 {[%clk 0:02:15]}  Nd7 {[%clk 0:02:18]} 23. Qb3 {[%clk 0:02:11]}  h5 {[%clk 0:02:10]} 24. Bg3 {[%clk 0:02:09]}  Qg5 {[%clk 0:02:02]} 25. f4 {[%clk 0:01:53]}  Qe7 {[%clk 0:02:01]} 26. gxh5 {[%clk 0:01:37]}  Nb6 {[%clk 0:01:54]} 27. Bf2 {[%clk 0:00:59]}  Rc4 {[%clk 0:01:47]} 28. Qg3 {[%clk 0:00:54]}  Nxa4 {[%clk 0:01:39]} 29. h6 {[%clk 0:00:50]}  f5 {[%clk 0:01:39]} 30. Qg6 {[%clk 0:00:43]}  Qf7 {[%clk 0:01:37]} 31. h7+ {[%clk 0:00:42]}  Kh8 {[%clk 0:01:36]} 32. Qg5 {[%clk 0:00:27]}  Kxh7 {[%clk 0:01:34]} 33. Rxc4 {[%clk 0:00:25]}  dxc4 {[%clk 0:01:34]} 34. Ra1 {[%clk 0:00:24]}  Nb6 {[%clk 0:01:33]} 35. Rb1 {[%clk 0:00:20]}  Nd5 {[%clk 0:01:33]} 36. Be1 {[%clk 0:00:16]}  Qg6 {[%clk 0:01:30]} 37. Qxg6+ {[%clk 0:00:16]}  Kxg6 {[%clk 0:01:31]} 38. Kf3 {[%clk 0:00:17]}  c3 {[%clk 0:01:29]} 39. h4 {[%clk 0:00:08]}  c2 {[%clk 0:01:29]} 40. Rc1 {[%clk 0:00:08]}  b3 {[%clk 0:01:29]} 41. Bd2 {[%clk 0:00:05]}  b2 {[%clk 0:01:26]} 42. Rg1+ {[%clk 0:00:06]}  Kh7 {[%clk 0:01:26]} 0-1


[Site "https://www.chess.com"]